[Event "Lozovatsky Memorial-B 2019"]
[Site "Chelyabinsk"]
[Date "2019.01.17"]
[Round "6"]
[White "Tologontegin, Semetey"]
[Black "Sitnikov, Anton"]
[Result "0-1"]
[ECO "A04"]
[WhiteElo "2385"]
[BlackElo "2410"]
[Annotator "NA"]
[PlyCount "135"]
[EventDate "2019.01.12"]
[EventType "tourn"]
[EventCountry "RUS"]
[SourceTitle "playchess.com"]
[Source "ChessBase"]
[SourceQuality "1"]
[TimeControl "5400+30"]

1. Nf3 {[%emt 0:00:00]} c5 {[%emt 0:00:00]} 2. e3 {[%emt 0:07:32]} b6 {[%emt 0:07:54]} 3. d4 {[%emt 0:00:10]} Bb7 {[%emt 0:00:12]} 4. d5 {[%emt 0:02:58]} Nf6 {[%emt 0:06:47]} 5. Nc3 {[%emt 0:14:23]} d6 {[%emt 0:02:19]} 6. e4 {[%emt 0:00:54]} Nbd7 {[%emt 0:00:06]} 7. Be2 {[%emt 0:04:58]} a6 {[%emt 0:00:20]} 8. a4 {[%emt 0:02:58]} g6 {[%emt 0:01:25]} 9. O-O {[%emt 0:00:49]} Bg7 {[%emt 0:00:06]} 10. h3 {[%emt 0:00:23]} O-O {[%emt 0:00:32]} 11. Be3 {[%emt 0:00:31]} Qc7 {[%emt 0:19:14]} 12. Re1 {[%emt 0:06:54]} Ne5 {[%emt 0:02:23]} 13. Nd2 {[%emt 0:16:55]} e6 {[%emt 0:01:05]} 14. f4 {[%emt 0:01:07]} Ned7 {[%emt 0:00:14]} 15. Nc4 {[%emt 0:01:07]} Nxe4 {[%emt 0:08:03]} 16. Nxe4 {[%emt 0:00:05]} exd5 {[%emt 0:00:03]} 17. Nexd6 {[%emt 0:00:10]} Bc6 {[%emt 0:00:11]} 18. c3 $15 {[%emt 0:15:13]} dxc4 {[%emt 0:24:32]} 19. Nxc4 {[%emt 0:01:47]} Rad8 {[%emt 0:09:08]} 20. Nd2 {[%emt 0:02:40]} Nf6 {[%emt 0:00:59]} 21. Qc1 {[%emt 0:13:14]} Nd5 {[%emt 0:01:08]} 22. Nf1 {[%emt 0:00:15]} Nxe3 {[%emt 0:08:23]} 23. Qxe3 {[%emt 0:00:10]} Rfe8 {[%emt 0:00:17]} 24. Qf2 {[%emt 0:00:35]} Re4 {[%emt 0:00:07]} 25. g3 {[%emt 0:02:32]} Rxa4 {[%emt 0:04:23]} 26. Rxa4 {[%emt 0:03:39]} Bxa4 {[%emt 0:00:02]} 27. Ra1 {[%emt 0:00:45]} Bb5 {[%emt 0:02:52]} 28. Bxb5 {[%emt 0:00:08]} axb5 {[%emt 0:00:02]} 29. Qe2 {[%emt 0:00:39]} b4 {[%emt 0:00:10]} 30. c4 {[%emt 0:00:37]} Qd7 {[%emt 0:00:34]} 31. Kh2 {[%emt 0:00:04]} Qd4 {[%emt 0:00:20]} 32. Rb1 {[%emt 0:00:17]} b3 {[%emt 0:01:21]} 33. Kg2 {[%emt 0:00:37]} h5 {[%emt 0:00:30]} 34. h4 {[%emt 0:00:09]} Kf8 {[%emt 0:00:44]} 35. Re1 {[%emt 0:00:55]} Kg8 {[%emt 0:00:26]} 36. Rb1 {[%emt 0:00:04]} Bf6 {[%emt 0:00:25]} 37. Kf3 {[%emt 0:00:45]} Rd7 {[%emt 0:00:37]} 38. Qe3 {[%emt 0:00:24]} Re7 {[%emt 0:00:32]} 39. Qxd4 {[%emt 0:00:31]} Bxd4 {[%emt 0:00:09]} 40. Rd1 {[%emt 0:00:22]} Bxb2 {[%emt 0:00:49]} 41. Rb1 {[%emt 0:00:05]} Bd4 {[%emt 0:00:12]} 42. Rxb3 {[%emt 0:00:05]} Re1 {[%emt 0:00:50]} 43. Nd2 {[%emt 0:01:26]} f5 {[%emt 0:00:29]} 44. Rd3 {[%emt 0:00:12]} Rc1 {[%emt 0:00:17]} 45. Ke2 {[%emt 0:00:41]} Kf7 {[%emt 0:00:25]} 46. Rb3 {[%emt 0:00:28]} Rc3 {[%emt 0:00:23]} 47. Rxc3 {[%emt 0:01:25]} Bxc3 {[%emt 0:00:01]} 48. Nf3 {[%emt 0:00:04]} Ke6 {[%emt 0:00:50]} 49. Kd3 {[%emt 0:00:04]} Bf6 {[%emt 0:00:10]} 50. Kc2 {[%emt 0:01:20]} Kd6 {[%emt 0:00:33]} 51. Kd2 {[%emt 0:00:44]} Bd4 {[%emt 0:01:24]} 52. Ke2 {[%emt 0:00:04]} Kc6 {[%emt 0:00:09]} 53. Kd3 {[%emt 0:00:55]} Bf6 {[%emt 0:00:31]} 54. Ke3 {[%emt 0:00:39]} b5 {[%emt 0:00:15]} 55. Kd3 {[%emt 0:00:10]} Kb6 {[%emt 0:00:45]} 56. cxb5 {[%emt 0:00:34]} Kxb5 {[%emt 0:00:04]} 57. Ne5 {[%emt 0:00:06]} Bxe5 {[%emt 0:00:31]} 58. fxe5 {[%emt 0:00:03]} Kb6 {[%emt 0:00:03]} 59. Kc3 {[%emt 0:01:03]} Kc7 {[%emt 0:00:05]} 60. Kc4 {[%emt 0:00:54]} Kc6 {[%emt 0:00:02]} 61. e6 {[%emt 0:00:05]} Kd6 {[%emt 0:00:03]} 62. e7 {[%emt 0:00:06]} Kxe7 {[%emt 0:00:02]} 63. Kxc5 {[%emt 0:00:03]} f4 {[%emt 0:00:57]} 64. gxf4 {[%emt 0:01:07]} Ke6 {[%emt 0:00:06]} 65. Kd4 {[%emt 0:00:29]} Kf5 {[%emt 0:00:03]} 66. Ke3 {[%emt 0:00:05]} Kg4 {[%emt 0:00:02]} 67. f5 {[%emt 0:00:45]} gxf5 {[%emt 0:00:04]} 68. Kd4 0-1

[Event "Lozovatsky Memorial-B 2019"]
[Site "Chelyabinsk"]
[Date "2019.01.17"]
[Round "6"]
[White "Radzhabov, Rodion"]
[Black "Nugumanov, Bakhtiyar"]
[Result "1/2-1/2"]
[ECO "C47"]
[WhiteElo "2329"]
[BlackElo "2391"]
[Annotator "NA"]
[PlyCount "75"]
[EventDate "2019.01.12"]
[EventType "tourn"]
[EventCountry "RUS"]
[SourceTitle "playchess.com"]
[Source "ChessBase"]
[SourceQuality "1"]
[TimeControl "5400+30"]

1. e4 {[%emt 0:00:00]} e5 {[%emt 0:00:04]} 2. Nf3 {[%emt 0:00:00]} Nc6 {[%emt 0:00:10]} 3. Nc3 {[%emt 0:00:00]} Nf6 {[%emt 0:00:20]} 4. Be2 {[%emt 0:00:05]} d5 {[%emt 0:04:01]} 5. exd5 {[%emt 0:00:08]} Nxd5 {[%emt 0:00:09]} 6. O-O {[%emt 0:00:05]} Nxc3 {[%emt 0:00:53]} 7. bxc3 {[%emt 0:00:02]} e4 {[%emt 0:01:44]} 8. Ne1 {[%emt 0:00:10]} Bd6 {[%emt 0:01:05]} 9. f3 {[%emt 0:01:15]} f5 {[%emt 0:04:03]} 10. fxe4 {[%emt 0:01:50]} fxe4 {[%emt 0:01:24]} 11. d4 {[%emt 0:18:59]} Rf8 {[%emt 0:10:21]} 12. g3 {[%emt 0:03:27]} Qe7 {[%emt 0:06:17]} 13. Ng2 {[%emt 0:09:10]} Bd7 {[%emt 0:04:03]} 14. Rxf8+ {[%emt 0:05:26]} Qxf8 {[%emt 0:01:35]} 15. Bg5 {[%emt 0:02:27]} Be7 {[%emt 0:04:13]} 16. Qd2 {[%emt 0:02:15]} O-O-O {[%emt 0:05:14]} 17. Rf1 {[%emt 0:21:32]} Qe8 {[%emt 0:09:24]} 18. Bc4 $11 {[%emt 0:05:38]} Qg6 {[%emt 0:06:39]} 19. Bxe7 {[%emt 0:02:40]} Nxe7 {[%emt 0:00:03]} 20. Ne3 {[%emt 0:10:26]} Kb8 {[%emt 0:08:55]} 21. Rf7 {[%emt 0:02:51]} Nc8 {[%emt 0:03:04]} 22. Qf2 {[%emt 0:00:29]} Nd6 {[%emt 0:02:48]} 23. Re7 {[%emt 0:00:32]} a6 {[%emt 0:04:38]} 24. Bd5 {[%emt 0:03:23]} Bc8 {[%emt 0:02:48]} 25. Qf4 {[%emt 0:01:39]} Rd7 {[%emt 0:08:20]} 26. Re5 {[%emt 0:02:35]} Qf6 {[%emt 0:05:30]} 27. Bxe4 {[%emt 0:01:10]} Qxf4 {[%emt 0:00:46]} 28. gxf4 {[%emt 0:00:07]} Rf7 {[%emt 0:00:49]} 29. Ng2 {[%emt 0:02:39]} Nxe4 {[%emt 0:01:26]} 30. Rxe4 {[%emt 0:00:01]} Bf5 {[%emt 0:00:56]} 31. Re8+ {[%emt 0:01:16]} Ka7 {[%emt 0:00:00]} 32. Ne3 {[%emt 0:00:17]} Bg6 {[%emt 0:00:25]} 33. Rg8 {[%emt 0:00:17]} Be4 {[%emt 0:00:44]} 34. f5 {[%emt 0:00:55]} g6 {[%emt 0:00:21]} 35. fxg6 {[%emt 0:00:35]} Bxg6 {[%emt 0:00:12]} 36. Kg2 {[%emt 0:01:39]} Be4+ {[%emt 0:00:23]} 37. Kg1 {[%emt 0:00:07]} Bg6 {[%emt 0:00:08]} 38. Kg2 {[%emt 0:00:16]} 1/2-1/2

[Event "Lozovatsky Memorial-B 2019"]
[Site "Chelyabinsk"]
[Date "2019.01.17"]
[Round "6"]
[White "Dauletova, Gulmira"]
[Black "Mischuk, Dmitry"]
[Result "1/2-1/2"]
[ECO "C41"]
[WhiteElo "2240"]
[BlackElo "2357"]
[Annotator "NA"]
[PlyCount "145"]
[EventDate "2019.01.12"]
[EventType "tourn"]
[EventCountry "RUS"]
[SourceTitle "playchess.com"]
[Source "ChessBase"]
[SourceQuality "1"]
[TimeControl "5400+30"]

1. e4 {[%emt 0:00:00]} d6 {[%emt 0:01:25]} 2. d4 {[%emt 0:00:00]} Nf6 {[%emt 0:00:06]} 3. Nc3 {[%emt 0:00:06]} e5 {[%emt 0:00:16]} 4. Nf3 {[%emt 0:00:56]} Nbd7 {[%emt 0:00:36]} 5. Bc4 {[%emt 0:00:25]} Nb6 {[%emt 0:01:19]} 6. Be2 {[%emt 0:04:28]} exd4 {[%emt 0:00:25]} 7. Qxd4 {[%emt 0:04:56]} Be7 {[%emt 0:00:14]} 8. O-O {[%emt 0:01:13]} O-O {[%emt 0:00:11]} 9. b3 {[%emt 0:08:08]} Nfd7 {[%emt 0:03:04]} 10. Be3 {[%emt 0:13:05]} Bf6 {[%emt 0:04:15]} 11. Qd2 {[%emt 0:00:24]} Re8 {[%emt 0:02:16]} 12. Bd3 {[%emt 0:11:46]} c6 {[%emt 0:22:26]} 13. Rad1 {[%emt 0:04:54]} Qc7 {[%emt 0:07:35]} 14. Rfe1 {[%emt 0:12:57]} Ne5 {[%emt 0:07:07]} 15. Be2 {[%emt 0:01:18]} Nxf3+ {[%emt 0:04:55]} 16. Bxf3 {[%emt 0:00:04]} Be6 {[%emt 0:00:10]} 17. Bd4 $11 {[%emt 0:10:04]} Be5 {[%emt 0:01:35]} 18. Ne2 {[%emt 0:03:11]} Rad8 {[%emt 0:03:01]} 19. c4 {[%emt 0:00:22]} Nd7 {[%emt 0:01:24]} 20. Ng3 {[%emt 0:03:25]} c5 {[%emt 0:13:47]} 21. Be3 {[%emt 0:06:08]} Nb8 {[%emt 0:00:25]} 22. Be2 {[%emt 0:00:03]} g6 {[%emt 0:00:54]} 23. f4 {[%emt 0:02:04]} Bg7 {[%emt 0:00:08]} 24. Rf1 {[%emt 0:04:18]} Bc8 {[%emt 0:02:49]} 25. Kh1 {[%emt 0:01:46]} Nc6 {[%emt 0:00:12]} 26. Bd3 {[%emt 0:00:02]} a6 {[%emt 0:00:37]} 27. Qf2 {[%emt 0:00:53]} b6 {[%emt 0:06:58]} 28. Bc1 {[%emt 0:01:42]} Bb7 {[%emt 0:01:51]} 29. Bb2 {[%emt 0:01:12]} Bxb2 {[%emt 0:00:28]} 30. Qxb2 {[%emt 0:00:01]} Nd4 {[%emt 0:00:07]} 31. Rde1 {[%emt 0:00:34]} Bc6 {[%emt 0:01:36]} 32. Qd2 {[%emt 0:00:26]} Qe7 {[%emt 0:00:56]} 33. f5 {[%emt 0:01:26]} Bd7 {[%emt 0:04:34]} 34. e5 {[%emt 0:02:04]} dxe5 {[%emt 0:00:57]} 35. fxg6 {[%emt 0:00:27]} hxg6 {[%emt 0:01:28]} 36. Qh6 {[%emt 0:00:05]} Qf8 {[%emt 0:01:14]} 37. Qg5 {[%emt 0:01:45]} Qg7 {[%emt 0:00:56]} 38. Ne4 {[%emt 0:00:13]} f5 {[%emt 0:03:50]} 39. Nf6+ {[%emt 0:00:01]} Kf7 {[%emt 0:00:04]} 40. Nxe8 {[%emt 0:00:04]} Rxe8 {[%emt 0:00:06]} 41. Be4 {[%emt 0:00:04]} Qf6 {[%emt 0:00:24]} 42. Bd5+ {[%emt 0:00:17]} Kg7 {[%emt 0:00:07]} 43. Qd2 {[%emt 0:03:29]} a5 {[%emt 0:01:13]} 44. g3 {[%emt 0:00:07]} Qd6 {[%emt 0:00:45]} 45. Qg2 {[%emt 0:00:20]} Be6 {[%emt 0:02:15]} 46. Bxe6 {[%emt 0:00:13]} Rxe6 {[%emt 0:00:06]} 47. Qb7+ {[%emt 0:00:44]} Re7 {[%emt 0:00:08]} 48. Qg2 {[%emt 0:00:45]} Qf6 {[%emt 0:01:06]} 49. g4 {[%emt 0:00:13]} f4 {[%emt 0:00:40]} 50. Qe4 {[%emt 0:00:44]} g5 {[%emt 0:00:18]} 51. Qd5 {[%emt 0:00:28]} Qc6 {[%emt 0:00:44]} 52. Qe4 {[%emt 0:00:43]} Kf6 {[%emt 0:00:12]} 53. Rf2 {[%emt 0:00:31]} Qxe4+ {[%emt 0:00:47]} 54. Rxe4 {[%emt 0:00:01]} Rd7 {[%emt 0:00:17]} 55. Rd2 {[%emt 0:00:08]} Rh7 {[%emt 0:00:37]} 56. Rd3 {[%emt 0:00:52]} a4 {[%emt 0:00:53]} 57. bxa4 {[%emt 0:00:48]} Ra7 {[%emt 0:00:08]} 58. Ra3 {[%emt 0:00:07]} f3 {[%emt 0:00:37]} 59. Kg1 {[%emt 0:00:38]} Ra8 {[%emt 0:00:44]} 60. Kf2 {[%emt 0:00:10]} Rh8 {[%emt 0:00:29]} 61. Kg1 {[%emt 0:01:34]} Rh3 {[%emt 0:00:51]} 62. Rae3 {[%emt 0:00:07]} Rh4 {[%emt 0:00:22]} 63. a5 {[%emt 0:00:19]} bxa5 {[%emt 0:00:04]} 64. Ra3 {[%emt 0:01:04]} Ne2+ {[%emt 0:01:03]} 65. Kf1 {[%emt 0:00:01]} Rxh2 {[%emt 0:00:19]} 66. Rxf3+ {[%emt 0:00:10]} Nf4 {[%emt 0:00:06]} 67. Ra3 {[%emt 0:00:18]} Rh1+ {[%emt 0:00:19]} 68. Kf2 {[%emt 0:00:01]} Rh2+ {[%emt 0:00:13]} 69. Kf1 {[%emt 0:00:01]} Rh1+ {[%emt 0:00:24]} 70. Kf2 {[%emt 0:00:01]} Rh2+ {[%emt 0:00:16]} 71. Kf1 {[%emt 0:01:27]} Rh1+ {[%emt 0:00:06]} 72. Kf2 Rh2+ 73. Ke1 1/2-1/2

[Event "Lozovatsky Memorial-B 2019"]
[Site "Chelyabinsk"]
[Date "2019.01.17"]
[Round "6"]
[White "Kholopov, Alexander A."]
[Black "Ponomariov, Valeriy"]
[Result "1/2-1/2"]
[ECO "E35"]
[WhiteElo "2211"]
[BlackElo "2378"]
[Annotator "NA"]
[PlyCount "56"]
[EventDate "2019.01.12"]
[EventType "tourn"]
[EventCountry "RUS"]
[SourceTitle "playchess.com"]
[Source "ChessBase"]
[SourceQuality "1"]
[TimeControl "5400+30"]

1. d4 {[%emt 0:00:00]} Nf6 {[%emt 0:00:00]} 2. c4 {[%emt 0:00:00]} e6 {[%emt 0:00:00]} 3. Nc3 {[%emt 0:00:00]} Bb4 {[%emt 0:00:00]} 4. Qc2 {[%emt 0:00:00]} d5 {[%emt 0:00:06]} 5. cxd5 {[%emt 0:00:00]} exd5 {[%emt 0:00:15]} 6. Bg5 {[%emt 0:00:00]} h6 {[%emt 0:00:17]} 7. Bh4 {[%emt 0:00:00]} g5 {[%emt 0:02:57] E35: Nimzo-Indian: Classical: 4...d5 5 cxd5 exd5} (7... c5 8. dxc5 g5 9. Bg3 Ne4 10. e3 Qa5 11. Nge2 Bf5 12. Bxb8 Rxb8 13. Nd4 Bd7 14. Nb3 Bxc3+ 15. bxc3 Qxc3+ 16. Qxc3 Nxc3 17. Bd3 Ke7 {½-½ (37) Duda,J (2739)-Karjakin,S (2760) Batumi 2018}) 8. Bg3 {[%emt 0:00:00]} Nc6 {[%emt 0:00:09]} 9. e3 {[%emt 0:01:56]} h5 {[%emt 0:05:01]} 10. Nf3 {[%emt 0:12:49]} Ne4 {[%emt 0:07:54]} 11. Nd2 $146 {[%emt 0:27:32]} ({Predecessor:} 11. Ne5 h4 12. Nxc6 bxc6 13. f3 Nxc3 14. bxc3 hxg3 15. cxb4 {1-0 (34) Cederstam Barsk,C (2229)-Adler,B (2169) Stockholm 2012}) 11... Nxd2 {[%emt 0:13:24]} 12. Kxd2 {[%emt 0:00:03]} h4 {[%emt 0:01:26]} 13. Be5 {[%emt 0:00:05]} Nxe5 {[%emt 0:06:34]} 14. dxe5 {[%emt 0:00:03]} c6 {[%emt 0:00:26]} 15. Rd1 {[%emt 0:03:18]} Be6 {[%emt 0:15:44]} 16. Kc1 {[%emt 0:00:14]} Qb6 {[%emt 0:02:33]} 17. a3 {[%emt 0:03:22]} Bf8 {[%emt 0:05:07]} 18. Bd3 {[%emt 0:10:20]} Bg7 {[%emt 0:02:47]} 19. Na4 $15 {[%emt 0:06:59]} Qc7 {[%emt 0:05:33]} 20. f4 {[%emt 0:00:04]} gxf4 {[%emt 0:00:42]} 21. exf4 Bh6 {[%emt 0:00:21]} 22. g3 {[%emt 0:10:34]} Qxe5 {[%emt 0:07:14]} 23. Rhe1 {[%emt 0:04:48]} Qf6 {[%emt 0:01:01]} 24. Ba6 {[%emt 0:11:41]} O-O {[%emt 0:08:19]} 25. Bxb7 {[%emt 0:01:41]} Rab8 {[%emt 0:00:24]} 26. Ba6 {[%emt 0:00:06]} Bg7 {[%emt 0:03:21]} 27. Re5 {[%emt 0:00:56]} d4 {[%emt 0:04:00]} 28. Nc5 {[%emt 0:00:41]} Rfd8 {[%emt 0:00:44]} 1/2-1/2

[Event "Lozovatsky Memorial-B 2019"]
[Site "Chelyabinsk"]
[Date "2019.01.17"]
[Round "6"]
[White "Frolov, Ivan"]
[Black "Remizov, Yaroslav"]
[Result "0-1"]
[ECO "B00"]
[WhiteElo "2210"]
[BlackElo "2357"]
[Annotator "NA"]
[PlyCount "68"]
[EventDate "2019.01.12"]
[EventType "tourn"]
[EventCountry "RUS"]
[SourceTitle "playchess.com"]
[Source "ChessBase"]
[SourceQuality "1"]
[TimeControl "5400+30"]

1. e4 {[%emt 0:00:00]} d6 {[%emt 0:12:33]} 2. d4 {[%emt 0:00:21]} Nf6 {[%emt 0:00:02]} 3. Bd3 {[%emt 0:03:13]} e5 {[%emt 0:01:00]} 4. d5 {[%emt 0:02:44]} g6 {[%emt 0:07:07]} 5. c4 {[%emt 0:00:39]} Bg7 {[%emt 0:00:47]} 6. f3 {[%emt 0:02:20]} Nh5 {[%emt 0:04:42]} 7. Be3 {[%emt 0:01:02]} Nf4 {[%emt 0:07:16]} 8. Bf1 {[%emt 0:02:57]} f5 {[%emt 0:22:08]} 9. Nc3 {[%emt 0:00:06]} O-O {[%emt 0:00:42]} 10. g3 {[%emt 0:02:07]} Nh5 {[%emt 0:00:05]} 11. Qd2 $14 {[%emt 0:00:59]} fxe4 {[%emt 0:04:38]} 12. Nxe4 {[%emt 0:04:32]} Nf6 {[%emt 0:00:28]} 13. Ng5 {[%emt 0:09:08]} e4 {[%emt 0:06:21]} 14. Nxe4 {[%emt 0:01:06]} Nxe4 {[%emt 0:01:33]} 15. fxe4 {[%emt 0:00:04]} Qe8 {[%emt 0:10:57]} 16. Bg2 {[%emt 0:02:42]} Nd7 {[%emt 0:00:34]} 17. Ne2 {[%emt 0:17:15]} Ne5 {[%emt 0:06:34]} 18. Qc2 {[%emt 0:01:17]} b5 {[%emt 0:03:36]} 19. cxb5 {[%emt 0:04:51]} Qxb5 {[%emt 0:00:18]} 20. Rd1 {[%emt 0:11:17]} Bh3 {[%emt 0:03:49]} 21. Nc3 {[%emt 0:02:45]} Qc4 {[%emt 0:01:04]} 22. b3 {[%emt 0:00:22]} Qxc3+ {[%emt 0:02:59]} 23. Qxc3 {[%emt 0:00:10]} Bxg2 {[%emt 0:00:02]} 24. Ke2 {[%emt 0:01:43]} Bf3+ {[%emt 0:00:24]} 25. Kd2 {[%emt 0:00:05]} Bxh1 {[%emt 0:00:28]} 26. Qxc7 {[%emt 0:02:15]} Bxe4 {[%emt 0:00:31]} 27. Qxd6 {[%emt 0:00:26]} Rad8 {[%emt 0:00:56]} 28. Qe6+ {[%emt 0:00:23]} Kh8 {[%emt 0:00:03]} 29. Kc1 {[%emt 0:02:29]} Rc8+ {[%emt 0:00:15]} 30. Kd2 {[%emt 0:01:22]} Rc2+ {[%emt 0:00:05]} 31. Ke1 {[%emt 0:00:04]} Nf3+ {[%emt 0:00:03]} 32. Kf1 {[%emt 0:00:03]} Nxh2+ {[%emt 0:00:06]} 33. Kg1 {[%emt 0:00:04]} Nf3+ {[%emt 0:00:46]} 34. Kf1 {[%emt 0:00:03]} Ng5+ {[%emt 0:00:03]} 0-1

[Event "Lozovatsky Memorial-B 2019"]
[Site "Chelyabinsk"]
[Date "2019.01.18"]
[Round "7"]
[White "Ponomariov, Valeriy"]
[Black "Dauletova, Gulmira"]
[Result "0-1"]
[ECO "E21"]
[WhiteElo "2378"]
[BlackElo "2240"]
[Annotator "NA"]
[PlyCount "44"]
[EventDate "2019.01.12"]
[EventType "tourn"]
[EventCountry "RUS"]
[SourceTitle "playchess.com"]
[Source "ChessBase"]
[SourceQuality "1"]
[TimeControl "5400+30"]

1. d4 {[%emt 0:00:00]} Nf6 {[%emt 0:00:45]} 2. c4 {[%emt 0:00:00]} e6 {[%emt 0:00:06]} 3. Nc3 {[%emt 0:00:09]} Bb4 {[%emt 0:00:28]} 4. Nf3 {[%emt 0:00:16]} d5 {[%emt 0:00:45]} 5. Qa4+ {[%emt 0:00:49]} Nc6 {[%emt 0:00:11]} 6. e3 {[%emt 0:00:13]} O-O {[%emt 0:03:54]} 7. Bd2 {[%emt 0:01:52]} Re8 {[%emt 0:01:49]} 8. Qc2 {[%emt 0:00:49]} e5 {[%emt 0:01:32]} 9. dxe5 {[%emt 0:05:43]} Nxe5 {[%emt 0:02:34]} 10. cxd5 {[%emt 0:06:49]} a5 {[%emt 0:36:14]} 11. Nxe5 {[%emt 0:21:50]} Rxe5 {[%emt 0:01:13]} 12. Bc4 {[%emt 0:00:48]} Ng4 $14 {[%emt 0:04:28]} (12... Bf5 $5 {[%cal Rf5c2]} 13. Qd1 Nd7 $11) 13. Qd3 {[%emt 0:20:01]} Rf5 {[%emt 0:16:23]} 14. f4 {[%emt 0:04:46]} Rh5 {[%emt 0:05:49]} 15. Qd4 {[%emt 0:10:11]} Qe7 {[%emt 0:09:23]} 16. Be2 {[%emt 0:03:13]} Bf5 {[%emt 0:05:57]} 17. Bxg4 {[%emt 0:10:06]} Qh4+ {[%emt 0:00:04]} 18. g3 {[%emt 0:00:56]} Qxg4 {[%emt 0:00:02]} 19. e4 {[%emt 0:01:57]} Re8 {[%emt 0:00:54]} 20. Kf2 {[%emt 0:02:23]} Bxc3 {[%emt 0:02:31]} 21. Bxc3 {[%emt 0:00:04]} Bxe4 {[%emt 0:00:39]} 22. Qe3 {[%emt 0:00:52]} Qh3 {[%emt 0:01:16]} 0-1

[Event "Lozovatsky Memorial-B 2019"]
[Site "Chelyabinsk"]
[Date "2019.01.18"]
[Round "7"]
[White "Remizov, Yaroslav"]
[Black "Tologontegin, Semetey"]
[Result "1-0"]
[ECO "C00"]
[WhiteElo "2357"]
[BlackElo "2385"]
[Annotator "NA"]
[PlyCount "63"]
[EventDate "2019.01.12"]
[EventType "tourn"]
[EventCountry "RUS"]
[SourceTitle "playchess.com"]
[Source "ChessBase"]
[SourceQuality "1"]
[TimeControl "5400+30"]

1. e4 {[%emt 0:00:00]} e6 {[%emt 0:00:57]} 2. d4 {[%emt 0:00:03]} b6 {[%emt 0:00:15]} 3. Nf3 {[%emt 0:00:05]} Bb7 {[%emt 0:00:05]} 4. Bd3 {[%emt 0:00:02]} d6 {[%emt 0:01:06]} 5. O-O {[%emt 0:00:05]} Nd7 {[%emt 0:00:04]} 6. a4 {[%emt 0:00:04]} a6 {[%emt 0:00:47]} 7. Nbd2 {[%emt 0:07:01]} g6 {[%emt 0:23:14]} 8. a5 {[%emt 0:05:20]} b5 {[%emt 0:00:58]} 9. c4 {[%emt 0:00:07]} b4 {[%emt 0:00:23]} 10. d5 {[%emt 0:03:58]} Bg7 {[%emt 0:08:06]} 11. Qa4 {[%emt 0:06:27]} Rb8 {[%emt 0:08:35] [#]} 12. dxe6 $1 {[%emt 0:19:45]} fxe6 {[%emt 0:00:12]} 13. c5 {[%emt 0:00:11]} dxc5 {[%emt 0:02:29]} 14. Nb3 {[%emt 0:03:50]} Ne7 {[%emt 0:01:35]} 15. Ng5 $18 {[%emt 0:02:48]} Bc6 {[%emt 0:02:06]} 16. Qa2 {[%emt 0:01:46]} Nf8 {[%emt 0:19:33]} 17. Nxc5 {[%emt 0:14:54]} b3 {[%emt 0:05:32]} 18. Qa3 {[%emt 0:00:48]} h6 {[%emt 0:04:57]} 19. Nf3 {[%emt 0:00:42]} Bb5 {[%emt 0:00:47]} 20. Rd1 {[%emt 0:16:17]} Nc6 {[%emt 0:05:22]} 21. Bxh6 {[%emt 0:03:14]} Rxh6 {[%emt 0:00:19]} 22. Bxb5 {[%emt 0:00:21]} Rxb5 {[%emt 0:03:13]} 23. Rxd8+ {[%emt 0:00:04]} Kxd8 {[%emt 0:00:06]} 24. Nxb3 {[%emt 0:02:13]} Nd7 {[%emt 0:06:51]} 25. Rc1 {[%emt 0:00:54]} Ndb8 {[%emt 0:00:57]} 26. Nfd4 {[%emt 0:01:03]} Nxd4 {[%emt 0:03:53]} 27. Nxd4 {[%emt 0:00:06]} Bxd4 {[%emt 0:00:04]} 28. Qf8+ {[%emt 0:00:03]} Kd7 {[%emt 0:00:03]} 29. Qxh6 {[%emt 0:00:40]} Nc6 {[%emt 0:01:07]} 30. Qxg6 {[%emt 0:02:18]} Rxb2 {[%emt 0:00:04]} 31. Qf7+ {[%emt 0:00:07]} Kd6 {[%emt 0:00:27]} 32. h3 {Kd5} 1-0

[Event "Lozovatsky Memorial-B 2019"]
[Site "Chelyabinsk"]
[Date "2019.01.20"]
[Round "9"]
[White "Ponomariov, Valeriy"]
[Black "Frolov, Ivan"]
[Result "1-0"]
[ECO "A40"]
[WhiteElo "2378"]
[BlackElo "2210"]
[Annotator "NA RC"]
[PlyCount "35"]
[EventDate "2019.01.12"]
[EventType "tourn"]
[EventCountry "RUS"]
[SourceTitle "playchess.com"]
[Source "ChessBase"]
[SourceQuality "1"]
[TimeControl "5400+30"]

1. d4 {[%emt 0:00:00]} {Predecessor:} Nf6 $146 2. Nf3 d5 3. c4 e6 4. Nc3 Be7 5. Bf4 O-O 6. e3 c5 7. dxc5 Bxc5 8. Qc2 Nc6 9. a3 Qa5 10. Nd2 Qd8 11. Nb3 Bb6 12. Be2 Qe7 13. Bg5 dxc4 14. Nd2 Ne5 15. O-O Bd7 16. Bf4 Ng6 17. Bg3 Bc6 18. Nxc4 {½-½ (40) Carlsen,M (2835)-Caruana,F (2832) London 2018} 1-0